bitfinex-derivatives/quotes_ETHF0:USTF0_20241007
["timestamp","ask_amount","ask_price","bid_price","bid_amount"]
[1728320480880,3.2078,2479.8,2479.7,0.40332]
[1728320481685,3.61111,2479.8,2479.7,0.40332]
[1728320481885,3.2078,2479.8,2479.7,0.40332]
[1728320482286,3.61111,2479.8,2479.7,0.40332]
[1728320484084,3.2078,2479.8,2479.7,3.55332]
[1728320484886,0.4215,2479.9,2479.7,3.15]
[1728320485079,0.4215,2479.9,2479.8,0.40331]
[1728320485483,0.4215,2479.9,2479.8,45.23611]
[1728320485697,0.8364,2480.1,2480.0,0.40328]
[1728320485986,3.2078,2480.4,2480.0,3.15]
[1728320486293,3.6316,2480.4,2480.3,3.55323]
[1728320486591,4.03482,2480.4,2480.3,0.40323]
[1728320487188,0.40325,2480.3,2480.2,0.40324]
[1728320488386,0.40326,2480.2,2480.1,0.40325]
[1728320489390,0.40326,2480.2,2479.8,4.56286]
[1728320489595,1.22268,2480.1,2480.0,0.40327]
[1728320489990,0.4033,2480.0,2479.9,0.40329]
[1728320490193,0.40332,2479.9,2479.8,0.4033]
[1728320490390,0.4274,2480.0,2479.9,0.4033]
[1728320491294,0.4274,2480.0,2479.9,0.827]
[1728320491789,0.40322,2480.4,2480.3,0.40322]
[1728320492001,0.4277,2480.4,2480.3,0.40322]
[1728320492290,0.83092,2480.4,2480.3,0.40322]
[1728320492491,0.4277,2480.4,2480.3,0.40322]
[1728320492696,3.2078,2480.6,2480.2,3.15]
[1728320493000,3.2078,2480.6,2480.5,3.5532]
[1728320493498,4.01368,2480.6,2480.5,3.5532]
[1728320493798,3.6105,2480.6,2480.5,3.5532]
[1728320495186,3.6105,2480.6,2480.5,0.4032]
[1728320495889,3.6105,2480.6,2480.5,3.5532]
[1728320497198,4.01368,2480.6,2480.5,3.5532]
[1728320497497,3.6105,2480.6,2480.5,3.5532]
[1728320497793,4.01368,2480.6,2480.5,3.5532]
[1728320497997,0.40322,2480.5,2480.4,0.4032]
[1728320499191,4.01369,2480.6,2480.5,0.4032]
[1728320500398,3.6105,2480.6,2480.5,3.5532]
[1728320501301,0.4027,2480.6,2480.5,3.5532]
[1728320501794,0.4277,2480.7,2480.6,0.40318]
[1728320501795,0.83087,2480.7,2480.6,0.40318]
[1728320502587,0.83087,2480.7,2480.5,3.15]
[1728320502588,0.40318,2480.6,2480.5,3.55318]
[1728320503801,3.61098,2480.6,2480.5,3.55318]
[1728320504707,3.61098,2480.6,2480.5,4.9914559]
[1728320504898,3.2078,2480.6,2480.5,4.9914559]
[1728320505098,3.61098,2480.6,2480.5,4.9914559]
[1728320505303,3.61098,2480.6,2480.5,3.55318]
[1728320505499,3.61098,2480.6,2480.5,4.43831752]
[1728320505698,3.2078,2480.6,2480.5,4.99152847]
[1728320505898,3.61098,2480.6,2480.5,4.99152847]
[1728320506597,3.61098,2480.6,2480.5,4.10639095]
[1728320506994,3.61098,2480.6,2480.5,4.99152013]
[1728320509203,1.79993,2480.8,2480.5,8.61931109]
[1728320509204,0.792,2480.8,2480.5,8.61931109]
[1728320509401,0.792,2480.8,2480.7,3.55317]
[1728320509604,3.2078,2481.5,2480.8,1.00789]
[1728320509903,3.2078,2481.5,2481.4,0.40305]
[1728320510103,0.392,2481.8,2481.7,0.40301]
[1728320510302,0.392,2481.8,2481.7,3.55301]
[1728320511300,3.2078,2482.0,2481.9,0.40297]
[1728320511598,3.2078,2482.0,2481.9,3.55297]
[1728320514697,3.2078,2482.0,2481.9,0.40297]
[1728320515595,3.61076,2482.0,2481.9,3.55297]
[1728320516395,3.61076,2482.0,2481.7,3.15]
[1728320516396,3.2078,2482.0,2481.7,3.15]
[1728320516595,3.2078,2482.0,2481.8,0.40298]
[1728320516596,0.40299,2481.9,2481.8,0.40298]
[1728320516797,3.61077,2482.0,2481.9,0.40297]
[1728320517002,7.63957,2482.0,2481.9,0.40297]
[1728320517200,3.61077,2482.0,2481.9,0.40297]
[1728320517396,7.63957,2482.0,2481.9,0.40297]
[1728320518106,0.40298,2481.9,2481.8,0.40297]
[1728320518706,3.2078,2482.0,2481.7,3.15]
[1728320518910,3.2078,2482.0,2481.8,0.40297]
[1728320518911,0.40299,2481.9,2481.8,0.40297]
[1728320519904,0.40299,2481.8,2481.7,3.55299]
[1728320520207,4.0296,2481.9,2481.5,3.15]
[1728320520507,4.03582,2481.7,2481.6,0.40301]
[1728320520807,3.6328,2481.7,2481.6,3.55301]
[1728320521507,4.0525,2481.7,2481.6,3.55301]
[1728320521805,3.6328,2481.7,2481.6,3.55301]
[1728320522006,3.2078,2481.7,2481.6,3.55301]
[1728320522608,4.03046,2482.0,2481.6,3.15]
[1728320522808,4.03046,2482.0,2481.9,3.55297]
[1728320524115,8.66371,2482.0,2481.4,0.094]
[1728320524411,0.40307,2481.4,2481.3,0.40306]
[1728320524913,3.61085,2481.5,2481.4,0.40305]
[1728320527810,0.40305,2481.4,2481.1,3.9202]
[1728320528107,0.40308,2481.3,2481.2,0.40307]
[1728320528410,4.21541,2481.5,2481.1,3.15]
[1728320528411,3.2078,2481.5,2481.1,3.15]
[1728320528609,3.2078,2481.5,2481.4,3.55305]
[1728320529807,3.61084,2481.5,2481.4,3.55305]
[1728320530107,3.2078,2481.5,2481.4,3.55305]
[1728320530805,3.2078,2481.5,2481.4,7.58265]
[1728320531011,3.2078,2481.5,2481.4,7.98685]
[1728320531313,3.957,2482.4,2481.9,0.40297]
[1728320531314,3.3168,2482.2,2481.9,0.40297]
[1728320531509,0.79105,2482.1,2482.0,0.40296]
[1728320532200,0.79105,2482.1,2482.0,3.55296]
[1728320532201,0.3881,2482.1,2482.0,3.55296]
[1728320532407,3.2078,2482.2,2482.1,0.40294]
[1728320532812,0.40294,2482.1,2482.0,3.55295]
[1728320533011,3.2078,2482.2,2482.1,0.40294]
[1728320533603,3.2078,2482.2,2482.0,3.55295]
[1728320533806,3.61073,2482.2,2482.0,3.15]
[1728320534006,3.61073,2482.2,2482.1,0.40294]
[1728320534315,3.61073,2482.2,2482.0,3.55295]
[1728320535008,3.61073,2482.2,2482.0,3.15]
[1728320535210,3.2078,2482.2,2482.0,3.55294]
[1728320535421,3.2078,2482.2,2482.0,3.15]
[1728320535614,3.61074,2482.2,2482.0,3.15]
[1728320535910,3.61074,2482.2,2482.1,0.40294]
[1728320536512,0.40294,2482.2,2482.1,0.40294]
[1728320537008,0.40294,2482.1,2482.0,3.15]
[1728320537214,0.40297,2482.0,2481.9,3.55296]
[1728320540810,0.40297,2482.0,2481.9,3.15]
[1728320541317,0.40299,2481.9,2481.8,0.40299]
[1728320541518,4.41889,2481.9,2481.8,0.40299]
[1728320541713,1.21109,2481.9,2481.8,0.40299]
[1728320541912,4.41889,2481.9,2481.8,0.40299]
[1728320542519,0.40299,2481.8,2481.7,3.15]
[1728320542821,0.40299,2481.8,2481.7,3.55301]
[1728320543318,0.40299,2481.8,2481.7,3.15]
[1728320544225,0.40299,2481.8,2481.7,3.55301]
[1728320544419,0.40299,2481.8,2481.7,3.15]
[1728320545913,4.0159,2481.9,2481.5,3.95713]
[1728320546117,0.40302,2481.6,2481.5,3.55303]
[1728320546318,0.40302,2481.6,2481.5,3.15]
[1728320546621,3.61082,2481.6,2481.5,3.55304]
[1728320546824,3.61082,2481.6,2481.5,3.15]
[1728320547921,3.61082,2481.6,2481.5,3.55304]
[1728320548319,3.61082,2481.6,2481.5,3.15]
[1728320548526,3.61082,2481.6,2481.5,3.55304]
[1728320549818,3.61082,2481.6,2481.5,3.15]
[1728320550018,3.61082,2481.6,2481.5,3.55304]
[1728320551517,3.61082,2481.6,2481.5,3.15]
[1728320551724,3.61082,2481.6,2481.5,3.55304]
[1728320552325,3.61082,2481.6,2481.5,3.15]
[1728320553123,3.61082,2481.6,2481.5,3.55304]
[1728320554218,3.61082,2481.6,2481.5,3.15]
[1728320554624,0.40307,2481.3,2481.2,0.49708]
[1728320554821,3.2078,2481.3,2481.1,3.15]
[1728320555031,0.81369,2481.2,2481.1,0.4031]
[1728320555335,0.40312,2481.1,2481.0,0.40311]
[1728320555528,1.21382,2481.1,2481.0,0.40311]
[1728320555719,1.21382,2481.1,2480.9,3.55313]
[1728320555720,0.40312,2481.0,2480.9,3.55313]
[1728320555925,3.61092,2481.0,2480.9,4.1054148]
[1728320556124,3.61092,2481.0,2480.9,3.55313]
[1728320556832,3.2078,2481.0,2480.8,0.40315]
[1728320557129,0.40314,2480.9,2480.8,0.40315]
[1728320557325,0.40314,2480.9,2480.8,3.55315]
[1728320559032,3.61094,2481.0,2480.9,0.40314]
[1728320559332,3.61094,2481.0,2480.9,4.43354]
[1728320559333,3.2078,2481.0,2480.9,4.43354]
[1728320559635,3.2078,2481.0,2480.9,15.79436515]
[1728320559829,3.2078,2481.3,2481.0,0.40312]
[1728320560029,3.2078,2481.3,2481.2,3.55309]
[1728320560432,3.2078,2481.3,2481.2,7.58349]
[1728320561738,4.0103,2481.6,2481.2,7.1804]
[1728320561937,4.41333,2481.6,2481.5,3.55304]
[1728320562135,4.0103,2481.6,2481.1,0.4065]
[1728320562430,4.41334,2481.6,2481.5,3.55304]
[1728320562635,0.40307,2481.4,2481.3,0.40306]
[1728320562838,0.40307,2481.4,2481.3,3.55306]
[1728320563037,5.01786,2481.6,2481.4,0.40305]
[1728320563038,0.79415,2481.5,2481.4,0.40305]
[1728320563639,0.40305,2481.4,2481.3,3.15]
[1728320564036,0.40305,2481.4,2481.3,3.55307]
[1728320564339,0.40308,2481.3,2481.2,0.40307]
[1728320564737,0.40308,2481.3,2481.2,4.43347]
[1728320565136,0.40307,2481.4,2481.3,0.40306]
[1728320568347,0.40309,2481.3,2481.2,0.40308]
[1728320569241,0.40309,2481.2,2481.1,3.95959]
[1728320569546,1.19949,2481.2,2481.1,3.9596]
[1728320572346,1.19949,2481.2,2481.0,0.40311]
[1728320572540,0.7958,2481.1,2481.0,0.40311]
[1728320572741,0.3927,2481.1,2481.0,0.40311]
[1728320572935,0.7958,2481.1,2481.0,0.40311]
[1728320573546,0.3927,2481.1,2481.0,0.40311]
[1728320574651,0.3927,2481.1,2480.9,3.55313]
[1728320574843,0.40312,2481.0,2480.9,3.55313]
[1728320577554,0.3927,2481.1,2481.0,0.40312]
[1728320578752,0.7958,2481.1,2481.0,0.40312]
[1728320579647,0.3927,2481.1,2481.0,0.40312]
[1728320580462,0.7964,2481.2,2480.9,3.15]
[1728320580657,3.2078,2481.6,2481.4,0.40304]
[1728320580658,0.40305,2481.5,2481.4,0.40304]
[1728320580850,0.40305,2481.5,2481.4,3.55304]
[1728320580851,0.82955,2481.5,2481.4,3.55304]
[1728320581151,1.23795,2481.5,2481.4,3.55304]
[1728320582049,3.2078,2481.6,2481.5,0.40304]
[1728320582647,3.61082,2481.6,2481.5,0.40304]
[1728320583059,3.2078,2481.6,2481.5,0.40304]
[1728320583553,3.61082,2481.6,2481.5,0.40304]
[1728320584742,0.4028,2482.0,2481.5,21.96601646]
[1728320584946,0.40296,2482.0,2481.9,3.15]
[1728320585145,0.40296,2482.0,2481.9,3.55297]
[1728320585348,5.41993,2482.2,2481.9,43.95]
[1728320585549,0.40295,2482.1,2482.0,0.40295]
[1728320585753,4.0125,2482.2,2482.1,0.40294]
[1728320585950,4.0125,2482.2,2482.1,3.55294]
[1728320586252,0.4169,2482.2,2482.1,3.55294]
[1728320586455,0.4169,2482.2,2482.1,3.15]
[1728320586660,0.40294,2482.1,2482.0,3.55294]
[1728320586952,1.39656,2482.1,2481.6,3.15]
[1728320587159,1.39656,2482.1,2481.9,0.40297]
[1728320587160,3.6191,2482.0,2481.9,0.40297]
[1728320587355,0.4113,2482.0,2481.9,3.55297]
[1728320587551,0.4113,2482.0,2481.9,3.15]
[1728320587754,0.81427,2482.0,2481.9,0.40297]
[1728320588346,0.81427,2482.0,2481.8,3.15]
[1728320588655,0.81427,2482.0,2481.9,0.40297]
[1728320589455,0.4113,2482.0,2481.6,3.5609]
[1728320589653,0.403,2481.8,2481.7,0.403]
[1728320590054,0.7927,2481.8,2481.7,0.403]
[1728320590558,0.40301,2481.7,2481.6,3.55301]
[1728320590860,0.83081,2481.7,2481.6,3.55301]
[1728320591559,0.4278,2481.7,2481.4,3.15]
[1728320591765,0.80243,2481.6,2481.5,0.40303]
[1728320592159,4.429,2481.6,2481.4,3.15]
[1728320592359,0.40304,2481.5,2481.4,3.55304]
[1728320592962,0.80243,2481.6,2481.5,0.40304]
[1728320594063,0.40304,2481.5,2481.4,3.55304]
[1728320596359,4.0296,2481.5,2481.2,3.15]
[1728320596565,0.79957,2481.4,2481.3,0.40306]
[1728320598265,0.3965,2481.4,2481.3,0.40306]
[1728320598465,0.79955,2481.4,2481.3,0.40306]
[1728320600872,0.3965,2481.4,2481.3,0.40306]
[1728320601459,0.79955,2481.4,2481.3,0.40306]
[1728320605581,0.3965,2481.4,2481.3,0.40306]
[1728320605877,0.79955,2481.4,2481.3,0.40306]
[1728320606071,0.79955,2481.4,2481.3,0.95532591]
[1728320606279,0.79955,2481.4,2481.3,0.95533226]
[1728320606669,0.79955,2481.4,2481.3,0.40306]
[1728320607577,0.79955,2481.4,2481.3,0.55223601]
[1728320607778,7.6347,2481.4,2481.1,0.4031]
[1728320608078,0.4031,2481.1,2481.0,0.40311]
[1728320608771,4.0183,2481.2,2481.1,0.4031]
[1728320609373,0.40313,2481.0,2480.9,0.40312]
[1728320609677,0.40313,2481.0,2480.9,0.95545164]
[1728320609970,0.40313,2481.0,2480.9,0.40312]
[1728320610968,4.0183,2481.2,2480.8,3.5598]
[1728320611164,0.417,2480.9,2480.8,3.96295]
[1728320611369,0.417,2480.9,2480.8,4.5152275]
[1728320611572,3.6248,2480.9,2480.4,0.094]
[1728320611773,3.6248,2480.9,2480.3,3.2078]
[1728320611774,3.6248,2480.9,2480.5,1.96115763]
[1728320611976,3.6248,2480.9,2480.6,0.55244763]
[1728320612182,0.40316,2480.8,2480.7,0.40315]
[1728320612571,3.6248,2480.9,2480.5,4.55871]
[1728320612772,4.02794,2480.9,2480.8,0.40315]
[1728320618775,0.82014,2480.9,2480.8,0.40315]
[1728320620783,3.2078,2481.0,2480.7,3.15]
[1728320620982,3.2078,2481.0,2480.9,3.55314]
[1728320621173,0.807,2481.5,2481.4,0.40305]
[1728320621174,0.094,2481.5,2481.4,0.40305]
[1728320621372,0.403,2481.8,2481.7,0.40301]
[1728320621583,1.00741,2482.0,2481.5,41.1872]
[1728320621784,1.0076,2481.5,2481.2,0.094]
[1728320622085,1.0076,2481.5,2481.2,0.40308]
[1728320622086,0.40307,2481.3,2481.2,0.40308]
[1728320622786,3.2078,2481.5,2481.4,0.40305]
[1728320623181,3.2078,2481.5,2481.4,3.55305]
[1728320625885,0.40303,2481.6,2481.5,0.40302]
[1728320626085,0.79231,2481.7,2481.6,0.40302]
[1728320627789,0.40302,2481.6,2481.5,0.79762]
[1728320628490,3.61082,2481.6,2481.5,0.79762]
[1728320628691,4.00362,2481.6,2481.5,0.79762]
[1728320629886,4.00362,2481.6,2481.5,0.3946]
[1728320630093,4.00362,2481.6,2481.5,0.79764]
[1728320630993,3.6006,2481.6,2481.5,0.79764]
[1728320632094,3.2078,2481.6,2481.5,0.79764]
[1728320632590,3.2078,2481.6,2481.5,7.97724]
[1728320633684,0.8533,2481.9,2481.8,0.40299]
[1728320633991,0.8533,2481.9,2481.8,3.55299]
[1728320634893,3.2078,2482.1,2482.0,0.40296]
[1728320635097,3.2078,2482.1,2482.0,3.55296]
[1728320635286,3.2078,2482.1,2482.0,7.58176]
[1728320635688,0.4174,2482.3,2482.0,7.1788]
[1728320635892,0.4174,2482.3,2482.2,0.40292]
[1728320635893,0.82032,2482.3,2482.2,0.40292]
[1728320637098,0.82031,2482.3,2482.2,3.55292]
[1728320637398,0.4174,2482.3,2482.2,3.55292]
[1728320638291,0.40289,2482.4,2482.2,3.15]
[1728320638492,0.40289,2482.4,2482.3,0.40291]
[1728320638696,0.40289,2482.4,2482.3,0.79051]
[1728320641598,0.40293,2482.2,2482.1,0.40292]
[1728320641900,3.61073,2482.2,2481.8,0.5026]
[1728320642198,1.65334,2482.1,2482.0,0.40295]
[1728320642505,0.40296,2482.0,2481.9,3.55297]
[1728320642704,0.40296,2482.0,2481.9,0.40297]
[1728320642705,3.61076,2482.0,2481.9,0.40297]
[1728320643006,0.403,2481.9,2481.8,0.40298]
[1728320643301,0.403,2481.9,2481.5,4.25157]
[1728320643491,3.2078,2481.7,2481.6,0.40302]
[1728320644003,3.61081,2481.7,2481.6,0.40302]
[1728320644200,4.00821,2481.7,2481.6,0.40302]
[1728320644406,0.40302,2481.6,2481.5,3.55302]
[1728320644604,0.8215,2481.6,2481.5,3.55302]
[1728320644998,1.22453,2481.6,2481.5,0.40304]
[1728320645496,1.22453,2481.6,2481.4,0.3896]
[1728320645497,0.40304,2481.5,2481.4,0.79264]
[1728320645698,1.22453,2481.6,2481.5,0.40304]
[1728320647802,1.22453,2481.6,2481.5,0.50104]
[1728320649202,5.25413,2481.6,2481.5,0.098]
[1728320649697,5.25413,2481.6,2481.0,1.4302]
[1728320649698,10.8511,2481.6,2481.0,0.4224]
[1728320650004,3.6109,2481.1,2481.0,0.40312]
[1728320650208,3.2078,2481.1,2480.7,4.58032]
[1728320650397,0.7948,2481.0,2480.9,3.55312]
[1728320650604,1.19792,2481.0,2480.9,3.55312]
[1728320650905,0.7948,2481.0,2480.9,3.55312]
[1728320652297,1.19792,2481.0,2480.9,3.55312]
[1728320653712,0.7948,2481.0,2480.9,3.55312]
[1728320655212,1.19792,2481.0,2480.9,3.55312]
[1728320655408,0.7948,2481.0,2480.7,3.5724]
[1728320655714,0.7948,2481.0,2480.6,0.40317]
[1728320655715,0.40318,2480.7,2480.6,0.40317]
[1728320656515,0.40316,2480.8,2480.7,0.40315]
[1728320656710,1.00785,2480.9,2480.5,3.5497]
[1728320657006,0.40318,2480.7,2480.6,0.40316]
[1728320658312,3.2078,2480.8,2480.5,3.5497]
[1728320658508,3.2078,2480.8,2480.7,0.40317]
[1728320663021,3.61095,2480.8,2480.7,0.40317]
[1728320664713,3.2078,2480.8,2480.5,3.5497]
[1728320665014,0.4261,2480.7,2480.5,3.5497]
[1728320665214,0.4261,2480.7,2480.6,0.40318]
[1728320665419,0.82927,2480.7,2480.6,0.40318]
[1728320669110,0.4261,2480.7,2480.6,0.40318]
[1728320669317,0.4261,2480.7,2480.6,3.55318]
[1728320671519,0.82927,2480.7,2480.6,3.55318]
[1728320671716,0.4261,2480.7,2480.6,0.40318]
[1728320674026,0.82927,2480.7,2480.6,0.40318]
[1728320674418,0.4261,2480.7,2480.6,0.40318]
[1728320674720,0.4261,2480.7,2480.6,1.85318]
[1728320676231,3.2078,2480.8,2480.7,0.40317]
[1728320676933,0.51207,2481.4,2481.1,0.4031]
[1728320677232,3.2078,2481.2,2480.7,1.0079]
[1728320677527,3.2078,2481.2,2480.8,1.45]
[1728320677726,3.61089,2481.2,2481.1,0.4031]
[1728320678037,3.2078,2481.2,2481.1,1.8531]
[1728320679023,3.61089,2481.2,2481.1,1.8531]
[1728320679430,3.2078,2481.2,2481.1,1.8531]
[1728320679824,0.8017,2481.3,2481.1,1.45]
[1728320680024,1.20477,2481.3,2481.1,1.45]
[1728320680327,1.20477,2481.3,2481.2,0.40309]
[1728320684934,0.40315,2481.0,2480.9,0.40313]
[1728320685327,0.40315,2480.9,2480.8,0.40314]
[1728320685542,1.23035,2480.9,2480.8,0.40314]
[1728320686124,4.43815,2480.9,2480.8,0.40314]
[1728320686930,4.43815,2480.9,2480.6,1.45]
[1728320687136,0.40318,2480.6,2480.5,1.85318]
[1728320687522,0.40318,2480.6,2480.5,0.40318]
[1728320687835,0.40325,2480.2,2480.1,1.85326]
[1728320688036,0.40325,2480.2,2479.8,0.73205517]
[1728320688037,2.45813,2480.2,2479.8,0.62305517]
[1728320688334,3.2078,2479.9,2479.8,1.02636517]
[1728320688534,3.6111,2479.9,2479.8,0.62305517]
[1728320688942,3.6111,2479.9,2479.8,1.02636517]
[1728320689129,3.6111,2479.9,2479.8,0.62305517]
[1728320691436,3.6111,2479.9,2479.8,1.02636517]
[1728320691744,8.24887,2479.9,2479.4,3.2078]
[1728320691938,1.00831,2479.8,2479.4,3.2078]
[1728320692330,0.40336,2479.5,2479.4,3.61116]
[1728320692641,1.00831,2479.8,2479.6,0.40334]
[1728320692642,0.40334,2479.7,2479.6,0.40334]
[1728320692838,0.40332,2479.8,2479.7,0.40332]
[1728320693136,3.61111,2479.9,2479.8,0.40331]
[1728320693334,3.2078,2479.9,2479.8,0.40331]
[1728320694134,3.6111,2479.9,2479.8,0.40331]
[1728320694540,3.6111,2479.9,2479.7,3.15]
[1728320694832,3.2078,2479.9,2479.7,3.15]
[1728320695042,3.61111,2479.9,2479.8,0.40331]
[1728320697340,0.40331,2479.9,2479.8,0.40331]
[1728320698946,0.40329,2480.0,2479.9,0.40329]
[1728320700243,0.4286,2480.1,2480.0,0.40328]
[1728320700550,0.40328,2480.0,2479.9,0.40328]
[1728320700949,0.4286,2480.1,2479.6,0.4284]
[1728320701145,0.40332,2479.9,2479.8,0.4033]
[1728320701341,0.40333,2479.8,2479.7,0.40332]
[1728320701845,3.2078,2479.9,2479.8,0.40331]
[1728320703646,3.6111,2479.9,2479.8,0.40331]
[1728320704947,3.6111,2479.9,2479.6,0.83174]
[1728320704948,0.40333,2479.7,2479.6,0.83174]
[1728320705947,0.40333,2479.7,2479.6,0.40334]
[1728320706749,1.00833,2479.7,2479.4,0.415]
[1728320707045,4.02246,2479.6,2479.5,0.40336]
[1728320708941,3.6191,2479.6,2479.5,0.40336]
[1728320709245,0.4113,2479.6,2479.5,0.40336]
[1728320709443,0.81465,2479.6,2479.5,0.40336]
[1728320712751,0.4113,2479.6,2479.5,0.40336]
[1728320712949,3.2078,2479.9,2479.8,0.40331]
[1728320713158,3.3018,2480.3,2479.7,3.15]
[1728320713353,0.40322,2480.5,2480.4,0.40321]
[1728320713650,0.40325,2480.3,2480.2,0.40324]
[1728320713850,1.00801,2480.5,2480.1,0.40325]
[1728320713851,0.40326,2480.2,2480.1,0.40325]
[1728320714353,0.40326,2480.2,2480.0,0.3981]
[1728320714354,0.40324,2480.3,2480.2,0.40324]
[1728320714550,3.2078,2480.4,2480.3,0.40323]
[1728320715054,3.2078,2480.4,2480.3,4.43523]
[1728320715953,0.4198,2480.6,2480.3,4.032]
[1728320716154,0.4198,2480.6,2480.1,4.52606]
[1728320716155,0.4198,2480.6,2480.5,0.4032]
[1728320716852,0.82298,2480.6,2480.5,0.4032]
[1728320718148,0.4198,2480.6,2480.1,4.52606]
[1728320718344,0.823,2480.6,2480.5,0.4032]
[1728320718551,0.40321,2480.5,2480.4,0.40321]
[1728320719352,1.22349,2480.6,2480.5,0.4032]
[1728320723162,0.82298,2480.6,2480.5,0.4032]
[1728320727755,1.22028,2480.6,2480.5,0.4032]
[1728320728565,0.8171,2480.6,2480.1,3.15]
[1728320728765,0.40323,2480.4,2480.3,0.40322]
[1728320731566,0.40321,2480.5,2480.4,0.4032]
[1728320734365,0.40323,2480.4,2480.3,0.40322]
[1728320734658,0.3862,2480.4,2480.3,0.40322]
[1728320734860,0.78942,2480.4,2480.3,0.40322]
[1728320738370,0.3862,2480.4,2480.3,0.40322]
[1728320742266,0.78942,2480.4,2480.3,0.40322]
[1728320742666,0.3862,2480.4,2480.3,0.40322]
[1728320742869,0.78942,2480.4,2480.3,0.40322]
[1728320743065,0.3862,2480.4,2480.3,0.40322]
[1728320743577,0.78942,2480.4,2480.3,0.40322]
[1728320744171,0.3862,2480.4,2480.3,0.40322]
[1728320744571,0.78942,2480.4,2480.3,0.40322]
[1728320750080,0.3862,2480.4,2480.3,0.40322]
[1728320750282,0.78942,2480.4,2480.3,0.40322]
[1728320750482,0.3862,2480.4,2480.3,0.40322]
[1728320752179,0.78942,2480.4,2480.3,0.40322]
[1728320753682,0.3862,2480.4,2480.3,0.40322]
[1728320754577,0.78942,2480.4,2480.3,0.40322]
[1728320755178,0.40327,2480.1,2480.0,0.49726]
[1728320755375,3.2078,2480.1,2480.0,0.40326]
[1728320756090,3.61107,2480.1,2480.0,0.40326]
[1728320758287,3.61107,2480.1,2480.0,0.9362643]
[1728320758679,3.61107,2480.1,2480.0,0.40326]
[1728320758885,3.61107,2480.1,2480.0,0.93626516]
[1728320760986,3.61107,2480.1,2480.0,0.53300516]
[1728320761178,3.61107,2480.1,2480.0,0.93623174]
[1728320761378,3.61107,2480.1,2480.0,0.40328]
[1728320761682,0.40331,2479.8,2479.7,0.49733]
[1728320761991,0.40334,2479.7,2479.6,0.40333]
[1728320762190,1.22094,2479.7,2479.6,0.40333]
[1728320762692,1.22093,2479.7,2479.6,0.40333]
[1728320762986,0.8176,2479.7,2479.6,0.40333]
[1728320763293,1.22093,2479.7,2479.6,0.40333]
[1728320764787,4.37093,2479.7,2479.6,0.40333]
[1728320765893,0.4034,2479.3,2479.2,0.82429]
[1728320766092,2.01674,2479.6,2479.2,0.4209]
[1728320766093,3.15,2479.4,2479.2,0.4209]
[1728320766287,0.3981,2479.3,2479.2,0.82431]
[1728320766684,0.3949,2479.6,2479.2,0.82431]
[1728320766896,0.3981,2479.5,2479.4,0.40338]
[1728320767198,3.2078,2479.8,2479.4,3.55338]
[1728320767389,3.2078,2479.8,2479.7,0.40333]
[1728320767698,3.61111,2479.8,2479.7,0.40333]
[1728320772192,0.40333,2479.7,2479.6,0.79574]
[1728320776895,0.40333,2479.8,2479.7,0.40331]
[1728320779194,0.793,2479.9,2479.8,0.40331]
[1728320779402,0.3981,2479.9,2479.8,0.40331]
[1728320781110,0.40329,2480.0,2479.9,0.4033]
[1728320781703,1.20698,2480.1,2480.0,0.40328]
[1728320783703,0.3869,2480.1,2480.0,0.40328]
[1728320784008,0.3869,2480.1,2480.0,4.43528]
[1728320784310,0.82965,2480.2,2480.1,0.40327]
[1728320784311,0.4264,2480.2,2480.1,0.40327]
[1728320784508,0.4264,2480.2,2480.0,4.4439]
[1728320784509,0.4128,2480.3,2480.2,0.40325]
[1728320785914,0.81603,2480.3,2480.2,0.40325]
[1728320788715,0.4128,2480.3,2480.0,44.3619]
[1728320788912,0.4033,2479.9,2479.8,0.40329]
[1728320789118,0.4033,2479.9,2479.5,1.10238]
[1728320789119,0.4033,2480.0,2479.9,0.40329]
[1728320789417,0.8221,2480.0,2479.9,0.40329]
[1728320791722,0.4188,2480.0,2479.9,0.40329]
[1728320791925,0.82208,2480.0,2479.9,0.40329]
[1728320792222,2.87701,2480.0,2479.8,0.40331]
[1728320792416,0.81411,2479.9,2479.8,0.40331]
[1728320792609,0.40335,2479.7,2479.6,0.40333]
[1728320792814,0.40337,2479.5,2479.4,0.40336]
[1728320793216,0.40339,2479.4,2479.3,0.40338]
[1728320793721,3.25959,2479.6,2479.4,0.40336]
[1728320793722,0.40337,2479.5,2479.4,0.40336]
[1728320794219,0.5048,2479.9,2479.8,0.40331]
[1728320794421,0.4108,2479.9,2479.8,1.85331]
[1728320795015,0.4108,2479.9,2479.8,0.40331]
[1728320795513,0.8141,2479.9,2479.8,0.40331]
[1728320796522,0.4108,2479.9,2479.8,0.40331]
[1728320797318,0.8141,2479.9,2479.8,0.40331]
[1728320797516,0.4108,2479.9,2479.8,0.40331]
[1728320799022,0.8141,2479.9,2479.8,0.40331]
[1728320800326,0.8141,2479.9,2479.5,1.0084]
[1728320800327,0.40333,2479.8,2479.7,0.40332]
[1728320800527,4.56906,2479.9,2479.3,0.094]
[1728320800828,0.40336,2479.6,2479.5,0.40335]
[1728320801216,1.20456,2479.6,2479.5,0.40335]
[1728320803421,0.8012,2479.6,2479.5,0.40335]
[1728320803822,1.20455,2479.6,2479.5,0.40335]
[1728320804124,1.20455,2479.6,2479.4,0.40337]